fUSD/lending_fUSD_20240525
["ID","MTS","AMOUNT","RATE_DAILY","PERIOD"]
[327934662,1716673832886,-160.85599689,0.00026778,2]
[327934663,1716673832895,-11463.96314034,0.00026798,3]
[327934664,1716673832907,-1000.0,0.000268,2]
[327934665,1716673832916,-154.43702878,0.00026815,2]
[327934666,1716673832925,-943.46,0.000269,2]
[327934667,1716673832934,-2500.0,0.000269,2]
[327934668,1716673832944,-170.04109646,0.00026906,2]
[327934669,1716673832952,-1127.50149307,0.00026906,2]
[327934670,1716673832963,-355.98613,0.00026952,2]
[327934671,1716673832972,-188.93907885,0.00026962,2]
[327934672,1716673832982,-160.85599689,0.0002698,2]
[327934673,1716673832993,-632.69771515,0.00027,3]
[327934674,1716673833002,-2227.50179135,0.00027,2]
[327934675,1716673833013,-51895.60514285,0.00027,2]
[327934676,1716673833027,-397.56791311,0.00027,2]
[327934677,1716673833052,-1479.4257306,0.00027,2]
[327934678,1716673833064,-2592.31585,0.00027,2]
[327934679,1716673833077,-134228.93212783,0.00027,2]
[327934680,1716673833088,-900.0,0.00027006,2]
[327934681,1716673833097,-200.0,0.00027018,2]
[327934682,1716673833105,-1000.0,0.00027018,2]
[327934683,1716673833115,-500.0,0.00027018,2]
[327934684,1716673833125,-150.0,0.000271,2]
[327934685,1716673833134,-193.48786301,0.00027123,2]
[327934686,1716673833143,-203.96513052,0.00027132,2]
[327934687,1716673833152,-155.0,0.00027132,2]
[327934688,1716673833161,-155.49460868,0.00027132,2]
[327934689,1716673833170,-155.0,0.00027132,2]
[327934690,1716673833180,-811.7231,0.00027132,2]
[327934691,1716673833190,-210.83347557,0.00027132,2]
[327934692,1716673833198,-894.45284741,0.00027132,2]
[327934693,1716673833208,-407.83722133,0.00027132,2]
[327934694,1716673833217,-200.81234292,0.00027132,2]
[327934695,1716673833226,-282.44814109,0.00027132,2]
[327934696,1716673833235,-318.29985525,0.00027132,2]
[327934697,1716673833245,-268.32530534,0.00027132,2]
[327934698,1716673833254,-156.32615111,0.00027132,2]
[327934699,1716673833264,-353.20057732,0.00027132,2]
[327934700,1716673833274,-306.37473052,0.00027132,2]
[327934701,1716673833283,-157.7887999,0.00027132,2]
[327934702,1716673833294,-160.51656206,0.00027132,2]
[327934703,1716673833304,-39369.69971533,0.00027132,2]
[327934704,1716673833314,-195.42376414,0.00027132,2]
[327934705,1716673833323,-209.09061157,0.00027132,2]
[327934706,1716673833332,-764.56629757,0.00027132,2]
[327934707,1716673833343,-221.48704095,0.00027132,2]
[327934708,1716673833354,-254.88619318,0.00027132,2]
[327934709,1716673833363,-157.77420436,0.00027133,2]
[327934710,1716673833373,-13049.64384055,0.00027133,2]
[327934711,1716673833382,-1698.26715129,0.00027133,2]
[327934712,1716673833392,-36579.25107021,0.00027133,2]
[327934713,1716673833403,-300.6296171,0.00027133,2]
[327934714,1716673833415,-997.8724334,0.00027133,2]
[327934715,1716673833430,-9050.3498805,0.00027133,2]
[327934722,1716673837569,-162.64609781,0.00013862,2]
[327934724,1716673837579,-6796.39814341,0.00027133,2]
[327934727,1716673837592,-2598.74777134,0.00027133,2]
[327934735,1716673837663,-3386.00253179,0.00027133,2]
[327934737,1716673837674,-1867.25339333,0.00027133,2]
[327934739,1716673837686,-1510.06177508,0.00027133,2]
[327934741,1716673837756,-1017.22067456,0.00027133,2]
[327934742,1716673837906,-1373.98236174,0.00027133,2]
[327934743,1716673837925,-97179.36483591,0.00027133,2]
[327934755,1716673840597,-465.97064429,0.00027133,2]
[327934756,1716673840610,-406.7734298,0.00027133,2]
[327934757,1716673840627,-280.26021866,0.00027133,2]
[327934758,1716673840640,-1478.532,0.00027133,2]
[327934759,1716673840652,-1890.88023709,0.00027133,2]
[327934760,1716673841627,-310.72,0.00027133,2]
[327934761,1716673841639,-2723.68358874,0.00027133,2]
[327934762,1716673841650,-3885.85631611,0.00027133,2]
[327934763,1716673841662,-840.71707407,0.00027133,2]
[327934764,1716673841674,-7496.6249336,0.00027133,2]
[327934765,1716673841686,-18526.95481102,0.00027133,2]
[327934773,1716673842708,-37945.42731013,0.00027133,2]
[327934774,1716673842718,-1000.0,0.00027133,2]
[327934775,1716673842875,-500.0,0.00027134,2]
[327934776,1716673842898,-8541.49638038,0.00027134,2]
[327934777,1716673843591,-842.7100002,0.00027134,2]
[327934778,1716673843603,-1695.025,0.00027134,2]
[327934779,1716673843615,-7569.79999997,0.00027134,2]
[327934780,1716673843632,-17644.195421,0.00027134,2]
[327934781,1716673843645,-13614.2006,0.00027134,2]
[327934782,1716673843656,-967.0,0.00027134,2]
[327934783,1716673843671,-10116.6,0.00027134,2]
[327934784,1716673843682,-506.26761822,0.00027134,2]
[327934785,1716673843699,-3723.59924609,0.00027134,2]
[327934786,1716673843710,-15630.17569135,0.00027134,2]
[327934787,1716673843722,-2341.34282718,0.00027134,2]
[327934794,1716673845670,-155.24372891,0.00017259,2]
[327934795,1716673845680,-141.0230027,0.00027132,2]
[327934796,1716673845692,-263.27240257,0.00027132,2]
[327934797,1716673845703,-157.20334897,0.00027132,2]
[327934798,1716673845712,-16807.58721561,0.00027134,2]
[327934799,1716673845721,-6134.6194,0.00027134,2]
[327934800,1716673845731,-1000.0,0.00027134,2]
[327934801,1716673845740,-6798.7264,0.00027134,2]
[327934802,1716673845749,-523.0,0.00027135,2]
[327934803,1716673845758,-668.61,0.0002717,2]
[327934804,1716673845768,-486.0,0.000272,11]
[327934805,1716673845777,-344.0,0.000272,2]
[327934806,1716673845786,-189.0,0.000272,11]
[327934807,1716673845795,-150.0,0.000272,5]
[327934808,1716673845804,-150.0,0.00027205,2]
[327934809,1716673845814,-151.04,0.00027226,2]
[327934810,1716673845823,-398.10173643,0.00027232,2]
[327934811,1716673845832,-1237.26380006,0.00027232,2]
[327934812,1716673845841,-1120.93170164,0.00027232,2]
[327934813,1716673845850,-208.21094231,0.00027234,2]
[327934814,1716673845859,-5874.5069088,0.00027234,2]
[327934815,1716673845868,-2000.0,0.00027234,2]
[327934816,1716673845878,-200.0,0.00027234,2]
[327934817,1716673845887,-151.0,0.00027234,7]
[327934818,1716673845897,-185.898797,0.00027234,7]
[327934819,1716673845906,-200.0,0.00027234,2]
[327934820,1716673845915,-1206.47875,0.00027234,2]
[327934821,1716673845924,-198.028393,0.00027234,2]
[327934822,1716673845933,-188.27751455,0.00027235,2]
[327934823,1716673845942,-599.24006216,0.00027235,2]
[327934824,1716673845951,-151.0,0.00027236,7]
[327934825,1716673845961,-151.0,0.00027236,7]
[327934826,1716673845970,-151.0,0.00027236,7]
[327934827,1716673845979,-151.0,0.00027236,7]
[327934828,1716673845988,-151.0,0.00027236,7]
[327934829,1716673845997,-151.0,0.00027236,7]
[327934830,1716673846006,-151.0,0.00027236,7]
[327934831,1716673846015,-151.0,0.00027236,7]
[327934832,1716673846024,-151.0,0.00027236,7]
[327934833,1716673846034,-151.0,0.00027236,7]
[327934834,1716673846043,-151.0,0.00027236,7]
[327934835,1716673846053,-151.0,0.00027236,7]
[327934836,1716673846063,-151.0,0.00027236,7]
[327934837,1716673846072,-151.0,0.00027236,7]
[327934838,1716673846084,-151.0,0.00027236,7]
[327934839,1716673846093,-151.0,0.00027236,7]
[327934840,1716673846103,-151.0,0.00027236,7]
[327934841,1716673846112,-151.0,0.00027236,7]
[327934842,1716673846134,-151.0,0.00027236,7]
[327934843,1716673846144,-151.0,0.00027236,7]
[327934844,1716673846154,-151.0,0.00027236,7]
[327934845,1716673846164,-151.0,0.00027236,7]
[327934846,1716673846174,-151.0,0.00027236,7]
[327934847,1716673846184,-151.0,0.00027236,7]
[327934848,1716673846195,-224.009004,0.00027236,7]
[327934849,1716673846204,-173.296148,0.00027236,7]
[327934850,1716673846214,-224.009004,0.00027236,7]
[327934851,1716673846225,-151.0,0.00027236,7]
[327934852,1716673846235,-151.0,0.00027236,7]
[327934853,1716673846245,-151.0,0.00027236,7]
[327934854,1716673846256,-151.0,0.00027236,7]
[327934855,1716673846266,-181.678509,0.00027236,7]
[327934856,1716673846276,-181.678509,0.00027236,7]
[327934857,1716673846286,-151.319732,0.00027236,7]
[327934858,1716673846296,-151.0,0.00027236,7]
[327934859,1716673846307,-151.319732,0.00027236,7]
[327934860,1716673846318,-151.0,0.00027236,7]
[327934861,1716673846329,-151.0,0.00027236,7]
[327934862,1716673846341,-151.0,0.00027236,7]
[327934863,1716673846351,-152.57399,0.00027236,7]
[327934864,1716673846361,-151.0,0.00027236,7]
[327934865,1716673846370,-207.938866,0.00027236,7]
[327934866,1716673846380,-207.938866,0.00027236,7]
[327934867,1716673846391,-151.0,0.00027236,7]
[327934868,1716673846402,-208.719473,0.00027236,7]
[327934869,1716673846413,-151.0,0.00027236,7]
[327934870,1716673846423,-151.0,0.00027236,7]
[327934871,1716673846433,-151.0,0.00027236,7]
[327934872,1716673846443,-151.0,0.00027236,7]
[327934873,1716673846452,-151.0,0.00027236,7]
[327934874,1716673846462,-151.0,0.00027236,7]
[327934875,1716673846472,-151.0,0.00027236,7]
[327934876,1716673846482,-151.0,0.00027236,7]
[327934877,1716673846492,-151.0,0.00027236,7]
[327934878,1716673846503,-159.844533,0.00027236,7]
[327934879,1716673846512,-159.844533,0.00027236,7]
[327934880,1716673846522,-151.0,0.00027236,7]
[327934881,1716673846532,-151.0,0.00027236,7]
[327934882,1716673846542,-151.0,0.00027236,7]
[327934883,1716673846552,-151.0,0.00027236,7]
[327934884,1716673846563,-151.0,0.00027236,7]
[327934885,1716673846572,-151.0,0.00027236,7]
[327934886,1716673846584,-151.0,0.00027236,7]
[327934887,1716673846594,-154.709365,0.00027236,7]
[327934888,1716673846604,-151.0,0.00027236,7]
[327934889,1716673846614,-151.0,0.00027236,7]
[327934890,1716673846624,-251.173621,0.00027236,7]
[327934891,1716673846634,-151.0,0.00027236,7]
[327934892,1716673846644,-251.173621,0.00027236,7]
[327934893,1716673846654,-151.0,0.00027236,7]
[327934894,1716673846664,-151.0,0.00027236,7]
[327934895,1716673846674,-151.0,0.00027236,7]
[327934896,1716673846684,-151.0,0.00027236,7]
[327934897,1716673846694,-151.0,0.00027236,7]
[327934898,1716673846704,-151.0,0.00027236,7]
[327934899,1716673846714,-151.0,0.00027236,7]
[327934900,1716673846724,-297.607306,0.00027236,7]
[327934901,1716673846733,-151.0,0.00027236,7]
[327934902,1716673846743,-180.162612,0.00027236,7]
[327934903,1716673846753,-151.0,0.00027236,7]
[327934904,1716673846763,-180.162612,0.00027236,7]
[327934905,1716673846772,-151.0,0.00027236,7]
[327934906,1716673846782,-151.0,0.00027236,7]
[327934907,1716673846791,-153.593217,0.00027236,7]
[327934908,1716673846801,-153.593217,0.00027236,7]
[327934909,1716673846810,-151.0,0.00027236,7]
[327934910,1716673846819,-151.0,0.00027236,7]
[327934911,1716673846829,-151.0,0.00027236,7]
[327934912,1716673846839,-273.214532,0.00027236,7]
[327934913,1716673846848,-151.0,0.00027236,7]
[327934914,1716673846857,-151.0,0.00027236,7]
[327934915,1716673846867,-151.0,0.00027236,7]
[327934916,1716673846876,-151.0,0.00027236,7]
[327934917,1716673846886,-21766.09998334,0.00027236,2]
[327934918,1716673847043,-194.178451,0.00027236,2]
[327934919,1716673847053,-173.135099,0.00027236,2]
[327934920,1716673847063,-19969.98,0.00027236,2]
[327934921,1716673847075,-151.4641126,0.00027279,2]
[327934922,1716673847087,-900.0,0.0002728,2]
[327934923,1716673847096,-259.540467,0.00027289,2]
[327934924,1716673847106,-355.98613,0.00027289,2]
[327934925,1716673847118,-156.0,0.0002729,14]
[327934926,1716673847128,-18344.94991349,0.0002737,2]
[327934927,1716673847139,-172.66527975,0.0002737,2]
[327934928,1716673847153,-158.52478936,0.00027378,2]
[327934929,1716673847163,-813.03672237,0.0002739,2]
[327934930,1716673847173,-275.710412,0.00027397,2]
[327934931,1716673847184,-151.0,0.00027397,7]
[327934932,1716673847196,-190.596753,0.00027397,7]
[327934933,1716673847207,-151.0,0.00027397,7]
[327934934,1716673847216,-151.0,0.00027397,7]
[327934935,1716673847227,-181.56,0.00027397,10]
[327934936,1716673847238,-151.0,0.00027397,7]
[327934937,1716673847248,-1894.57522375,0.00027398,2]
[327934938,1716673847276,-905.72771757,0.00027398,2]
[327934939,1716673847288,-390.33058782,0.00027398,2]
[327934940,1716673847314,-1384.42,0.00027398,2]
[327934941,1716673847329,-306.21779093,0.00027398,2]
[327934942,1716673847345,-2618.72867993,0.00027398,2]
[327934943,1716673847355,-1000.0,0.00027398,2]
[327934944,1716673847365,-10068.0,0.000274,4]
[327934945,1716673847375,-163.00887148,0.000274,2]
[327934946,1716673847385,-10000.0,0.000274,2]
[327934947,1716673847395,-162.67573834,0.000274,2]
[327934948,1716673847405,-205.56300982,0.000274,2]
[327934949,1716673847415,-3446.79953122,0.000274,2]
[327934950,1716673847425,-4486.90198262,0.000274,2]
[327934951,1716673847435,-2844.04,0.000274,2]
[327934952,1716673847445,-2844.04,0.000274,2]
[327934953,1716673847456,-46.38375627,0.000274,2]
[327934954,1716673847486,-977.88637809,0.000274,2]
[327934955,1716673847499,-483.87719183,0.000274,2]
[327934960,1716674342787,-155.0,0.00016929,2]
[327934961,1716674342810,-541.4599311,0.0001693,2]
[327934962,1716674342832,-337.29571537,0.0001693,2]
[327934963,1716674342855,-1206.79205888,0.0001693,2]
[327934964,1716674343014,-162.17564825,0.0001693,2]
[327934965,1716674343042,-505.42486748,0.00016932,2]
[327934966,1716674343066,-162.64609781,0.00016932,2]
[327934967,1716674343088,-365.73198455,0.00016933,2]
[327934968,1716674343111,-155.0,0.00016933,2]
[327934969,1716674343134,-267.9960928,0.00016934,2]
[327934970,1716674343160,-2920.47709717,0.00016934,2]
[327934971,1716674343182,-516.73760143,0.00016935,2]
[327934972,1716674343204,-429.01678638,0.00017254,2]
[327934973,1716674343227,-191.95,0.00017254,2]
[327934974,1716674343249,-150.0,0.00017259,2]
[327934975,1716674343273,-7920.56,0.0001726,2]
[327934976,1716674343295,-935.92,0.0001726,2]
[327934977,1716674343318,-499.99,0.0001726,2]
[327934978,1716674463117,303.04672511,0.00017259,2]
[327934979,1716674465367,499.19840938,0.00017259,2]
[327934980,1716674531944,151.06,0.00013973,2]
[327934981,1716674716116,372.52098429,0.00017259,2]
[327935005,1716675031811,-184.78441999,0.00017057,2]
[327935006,1716675031820,-184.78441998,0.00017108,2]
[327935007,1716675031829,-162.64609781,0.00017156,2]
[327935008,1716675031838,-516.73760143,0.00017259,2]
[327935009,1716675031847,-499.99,0.00019821,2]
[327935010,1716675031858,-786.76,0.00019821,2]
[327935011,1716675031868,-226.14002275,0.000201,2]
[327935012,1716675031877,-155.0,0.00020999,2]
[327935013,1716675031887,-1050.0,0.00021,2]
[327935014,1716675031896,-5514.19481281,0.00021,2]
[327935015,1716675031905,-185.36,0.00021222,2]
[327935016,1716675031914,-250.0,0.00021692,2]
[327935017,1716675031923,-500.0,0.00021698,2]
[327935018,1716675031932,-15364.58459709,0.00021719,2]
[327935019,1716675032040,-8535.41540291,0.00021719,2]
[327935020,1716675032049,-5574.67,0.00021732,2]
[327935021,1716675032058,-5040.91459709,0.00021746,2]
[327935022,1716675032070,-938.35540291,0.00021746,2]
[327935023,1716675032083,-720.72,0.00021751,2]
[327935024,1716675032094,-894.36,0.00021753,2]
[327935025,1716675032104,-200.0,0.00021755,2]
[327935026,1716675032113,-658.78574936,0.00021756,2]
[327935027,1716675032125,-8841.21425064,0.00021756,2]
[327935028,1716675032134,-615.68,0.00021781,2]
[327935029,1716675032143,-368.23,0.00021823,2]
[327935030,1716675032152,-150.0,0.0002185,2]
[327935031,1716675032162,-242.36,0.00021856,2]
[327935032,1716675032171,-2000.0,0.00021918,2]
[327935033,1716675032180,-250.0,0.00021918,2]
[327935034,1716675032189,-1391.85,0.00022,2]
[327935035,1716675032198,-515.67,0.00022003,2]
[327935036,1716675032207,-515.67,0.00022064,2]
[327935037,1716675032216,-786.76,0.00022085,2]
[327935038,1716675032226,-828.98,0.00022095,2]
[327935039,1716675032235,-157.84366425,0.00022115,2]
[327935040,1716675032244,-515.67,0.00022124,2]
[327935041,1716675032253,-150.13312094,0.00022177,2]
[327935042,1716675032262,-384.32,0.00022178,2]
[327935043,1716675032271,-515.67,0.00022185,2]
[327935044,1716675032280,-250.0,0.00022193,2]
[327935045,1716675032290,-157.84366425,0.00022217,2]
[327935046,1716675032299,-515.67,0.00022245,2]
[327935047,1716675032308,-151.02372557,0.00022258,2]
[327935048,1716675032318,-155.47010219,0.00022267,2]
[327935049,1716675032327,-150.13312094,0.00022273,2]
[327935050,1716675032336,-515.67,0.00022305,2]
[327935051,1716675032345,-175.33,0.00022323,2]
[327935052,1716675032354,-515.67,0.00022366,2]
[327935053,1716675032363,-205.7975636,0.0002237,2]
[327935054,1716675032373,-515.67,0.00022426,2]
[327935055,1716675032382,-150.13312094,0.00022467,2]
[327935056,1716675032392,-515.67,0.00022486,2]
[327935057,1716675032403,-154.53303561,0.00022507,2]
[327935058,1716675032413,-515.67,0.00022547,2]
[327935059,1716675032422,-152.64855572,0.00022554,2]
[327935060,1716675032432,-515.67,0.00022607,2]
[327935061,1716675032441,-515.67,0.00022667,2]
[327935062,1716675032450,-515.67,0.00022728,2]
[327935063,1716675032459,-157.84366425,0.00022782,2]
[327935064,1716675032468,-515.67,0.00022788,2]
[327935065,1716675032477,-205.7975636,0.00022804,2]
[327935066,1716675032487,-515.67,0.00022848,2]
[327935067,1716675032496,-515.67,0.00022909,2]
[327935068,1716675032505,-154.61148013,0.0002294,2]
[327935069,1716675032515,-515.67,0.00022969,2]
[327935070,1716675032524,-151.02372557,0.00022972,2]
[327935071,1716675032534,-1100.0,0.00023,2]
[327935072,1716675032544,-515.67,0.00023029,2]
[327935073,1716675032554,-154.03762695,0.00023079,2]
[327935074,1716675032563,-515.67,0.0002309,2]
[327935075,1716675032572,-155.0359777,0.00023144,2]
[327935076,1716675032582,-515.67,0.0002315,2]
[327935077,1716675032591,-154.03762695,0.00023327,2]
[327935078,1716675032601,-157.84366425,0.0002337,2]
[327935079,1716675032611,-157.84366425,0.00023399,2]
[327935080,1716675032620,-150.13312094,0.00023435,2]
[327935081,1716675032630,-205.7975636,0.00023445,2]
[327935082,1716675032639,-152.64855572,0.00023514,2]
[327935083,1716675032649,-154.61148013,0.00023644,2]
[327935084,1716675032659,-150.2119787,0.00023669,2]
[327935085,1716675032668,-154.1532126,0.00023763,2]
[327935086,1716675032677,-155.0359777,0.00024048,2]
[327935087,1716675032687,-152.64855572,0.00024165,2]
[327935088,1716675032696,-180.0,0.0002423,2]
[327935089,1716675032705,-166.83499667,0.00024306,2]
[327935090,1716675032715,-786.76,0.00024349,2]
[327935091,1716675032725,-151.02372557,0.00024461,2]
[327935092,1716675032735,-151.02372557,0.0002447,2]
[327935093,1716675032744,-720.72,0.0002449,2]
[327935094,1716675032754,-615.68,0.00024504,2]
[327935095,1716675032763,-154.61148013,0.0002452,2]
[327935096,1716675032773,-150.13312094,0.00024632,2]
[327935097,1716675032783,-338.64,0.00024734,3]
[327935098,1716675032792,-227.0030636,0.00024742,2]
[327935099,1716675032802,-506.3824181,0.00024742,2]
[327935100,1716675032811,-162.44741274,0.00024742,2]
[327935101,1716675032822,-417.45255306,0.00024742,2]
[327935102,1716675032832,-458.03680286,0.00024742,2]
[327935103,1716675032842,-309.452495,0.00024742,2]
[327935104,1716675032851,-155.0,0.00024742,2]
[327935105,1716675032861,-576.97713249,0.00024742,2]
[327935106,1716675032870,-540.42747193,0.00024742,2]
[327935107,1716675032879,-2220.58096225,0.00024743,7]
[327935108,1716675032888,-142661.55460853,0.00024744,2]
[327935109,1716675032897,-238.21561096,0.00024745,2]
[327935110,1716675032908,-159.15319227,0.00024828,2]
[327935111,1716675032918,-1984.33991307,0.0002488,2]
[327935112,1716675032929,-34352.07514674,0.00024889,2]
[327935113,1716675032939,-60999.12702658,0.00024898,2]
[327935114,1716675032948,-287.20692429,0.000249,2]
[327935115,1716675032957,-172.66527975,0.000249,2]
[327935116,1716675032967,-21772.95426364,0.000249,2]
[327935117,1716675032977,-159.15319227,0.00024916,2]
[327935118,1716675032987,-205.7975636,0.00024933,2]
[327935119,1716675032996,-384.32,0.0002495,2]
[327935120,1716675033006,-154.53303561,0.0002495,2]
[327935121,1716675033015,-157.84366425,0.00024968,2]
[327935122,1716675033024,-150.5,0.0002497,15]
[327935123,1716675033034,-2318.0,0.0002497,15]
[327935124,1716675033045,-1951.0,0.0002497,15]
[327935125,1716675033056,-440.0,0.0002497,15]
[327935126,1716675033065,-237.0,0.0002497,15]
[327935127,1716675033077,-2363.82,0.0002498,2]
[327935128,1716675033087,-150.5,0.0002498,15]
[327935129,1716675033096,-2318.0,0.0002498,15]
[327935130,1716675033107,-1951.0,0.0002498,15]
[327935131,1716675033116,-440.0,0.0002498,15]
[327935132,1716675033125,-237.0,0.0002498,15]
[327935133,1716675033135,-357.07206776,0.0002499,2]
[327935134,1716675033146,-150.5,0.0002499,15]
[327935135,1716675033156,-215.62,0.0002499,15]
[327935136,1716675033166,-2318.0,0.0002499,15]
[327935137,1716675033176,-1951.0,0.0002499,15]
[327935138,1716675033186,-440.0,0.0002499,15]
[327935139,1716675033195,-467.28671497,0.0002499,15]
[327935140,1716675033205,-221.51,0.0002499,15]
[327935141,1716675033215,-237.0,0.0002499,15]
[327935142,1716675033226,-151.02,0.0002499,2]
[327935143,1716675033236,-151.02,0.0002499,2]
[327935144,1716675033245,-151.02,0.0002499,2]
[327935145,1716675033254,-151.02,0.0002499,2]
[327935146,1716675033263,-357.07206776,0.0002499,2]
[327935147,1716675033272,-391.06069415,0.00024999,2]
[327935148,1716675033282,-500.0,0.00024999,2]
[327935149,1716675033291,-616.44512794,0.00024999,2]
[327935150,1716675033301,-500.0,0.00024999,2]
[327935151,1716675033311,-198.74338228,0.00024999,2]
[327935152,1716675033320,-150.0,0.00024999,2]
[327935153,1716675033333,-118608.68769834,0.00025,2]
[327935154,1716675033358,-6076.16054721,0.00025,2]
[327935155,1716675033395,-260.79473481,0.00025,2]
[327935157,1716675037772,-174.76,0.00013973,2]
[327935158,1716675037782,-184.78441998,0.00017159,2]
[327935159,1716675037791,-2073.42560701,0.00025,9]
[327935160,1716675038066,-1269.03741,0.00025,9]
[327935167,1716675040583,-764.2254,0.00025,9]
[327935179,1716675042872,-162.64609781,0.00024999,2]
[327935180,1716675042882,-382668.41819325,0.00025,9]
[327935181,1716675042892,-1429021.35701964,0.00025,2]
[327935182,1716675042901,-155.0,0.00025,2]
[327935183,1716675042910,-155.0,0.00025,2]
[327935184,1716675042919,-155.0,0.00025,2]
[327935185,1716675042928,-224.3459268,0.00025,2]
[327935186,1716675042937,-1272.69875268,0.00025,2]
[327935187,1716675042946,-1150.0,0.00025,2]
[327935188,1716675042956,-927.24854719,0.00025,2]
[327935189,1716675042965,-155.0,0.00025,2]
[327935190,1716675042974,-151.0,0.00025,7]
[327935191,1716675042983,-151.0,0.00025,7]
[327935192,1716675042993,-151.0,0.00025,7]
[327935193,1716675043002,-151.0,0.00025,7]
[327935194,1716675043011,-157.659643,0.00025,7]
[327935195,1716675043020,-151.0,0.00025,7]
[327935196,1716675043030,-153.631626,0.00025,7]
[327935197,1716675043038,-155.172824,0.00025,7]
[327935198,1716675043047,-151.0,0.00025,7]
[327935199,1716675043056,-151.0,0.00025,7]
[327935200,1716675043065,-151.0,0.00025,7]
[327935201,1716675043075,-151.0,0.00025,7]
[327935202,1716675043084,-151.0,0.00025,7]
[327935203,1716675043093,-151.0,0.00025,7]
[327935204,1716675043102,-151.0,0.00025,7]
[327935205,1716675043111,-255.247026,0.00025,7]
[327935206,1716675043121,-151.0,0.00025,7]
[327935207,1716675043130,-151.0,0.00025,7]
[327935208,1716675043139,-208.409523,0.00025,7]
[327935209,1716675043148,-151.0,0.00025,7]
[327935210,1716675043158,-151.0,0.00025,7]
[327935211,1716675043167,-151.0,0.00025,7]
[327935212,1716675043176,-151.0,0.00025,7]
[327935213,1716675043185,-151.0,0.00025,7]
[327935214,1716675043195,-151.0,0.00025,7]
[327935215,1716675043204,-151.0,0.00025,7]
[327935216,1716675043213,-151.0,0.00025,7]
[327935217,1716675043222,-151.0,0.00025,7]
[327935218,1716675043231,-151.0,0.00025,7]
[327935219,1716675043240,-226.056258,0.00025,7]
[327935220,1716675043249,-151.0,0.00025,7]
[327935221,1716675043258,-151.0,0.00025,7]
[327935222,1716675043267,-226.056258,0.00025,7]
[327935223,1716675043276,-151.0,0.00025,7]
[327935224,1716675043286,-278.268107,0.00025,7]
[327935225,1716675043295,-151.0,0.00025,7]
[327935226,1716675043303,-151.0,0.00025,7]
[327935227,1716675043312,-151.0,0.00025,7]
[327935228,1716675043322,-151.0,0.00025,7]
[327935229,1716675043331,-151.0,0.00025,7]
[327935230,1716675043340,-450.070366,0.00025,7]
[327935231,1716675043349,-151.0,0.00025,7]
[327935232,1716675043358,-450.070366,0.00025,7]
[327935233,1716675043368,-162.146351,0.00025,7]
[327935234,1716675043377,-151.0,0.00025,7]
[327935235,1716675043387,-151.0,0.00025,7]
[327935236,1716675043396,-151.0,0.00025,7]
[327935237,1716675043405,-162.146351,0.00025,7]
[327935238,1716675043419,-151.0,0.00025,7]
[327935239,1716675043428,-151.0,0.00025,7]
[327935240,1716675043437,-151.0,0.00025,7]
[327935241,1716675043446,-151.0,0.00025,7]
[327935242,1716675043456,-151.0,0.00025,7]
[327935243,1716675043465,-151.0,0.00025,7]
[327935244,1716675043474,-151.0,0.00025,7]
[327935245,1716675043483,-151.0,0.00025,7]
[327935246,1716675043492,-151.0,0.00025,7]
[327935247,1716675043501,-153.104286,0.00025,7]
[327935248,1716675043511,-151.0,0.00025,7]
[327935249,1716675043520,-151.0,0.00025,7]